bitfinex-derivatives/quotes_BTCF0:USTF0_20250127
["timestamp","ask_amount","ask_price","bid_price","bid_amount"]
[1737952110470,0.681608,101000.0,100990.0,0.20027698]
[1737952110666,0.681608,101000.0,100990.0,0.00214898]
[1737952110863,0.77569681,101000.0,100990.0,0.00214898]
[1737952111868,0.77569681,101000.0,100990.0,0.00314898]
[1737952112573,0.78720191,101000.0,100990.0,0.00314898]
[1737952114568,0.198142,100990.0,100970.0,0.26903653]
[1737952114769,0.3608,100980.0,100970.0,0.26903653]
[1737952115877,0.3608,100980.0,100970.0,0.27303653]
[1737952116269,0.558947,100980.0,100970.0,0.27303653]
[1737952116571,0.558947,100980.0,100970.0,0.28003653]
[1737952117576,0.558947,100980.0,100970.0,0.08187753]
[1737952119484,0.558947,100980.0,100970.0,0.17596634]
[1737952122873,0.558947,100980.0,100970.0,0.37413334]
[1737952124765,0.723347,100980.0,100970.0,0.37413334]
[1737952130491,0.784047,100980.0,100970.0,0.08187753]
[1737952133583,0.784047,100980.0,100970.0,0.0705]
[1737952134985,0.87813581,100980.0,100970.0,0.011]
[1737952135886,0.96580193,100980.0,100970.0,0.011]
[1737952139092,0.87171312,100980.0,100970.0,0.011]
[1737952139293,0.87171312,100980.0,100970.0,0.02648956]
[1737952139991,0.87171312,100980.0,100970.0,0.0264899]
[1737952141094,0.70731312,100980.0,100970.0,0.0264899]
[1737952142588,0.70731312,100980.0,100970.0,0.011]
[1737952143699,0.70731312,100980.0,100970.0,0.209167]
[1737952144291,0.70731312,100980.0,100970.0,0.011]
[1737952144491,0.80140193,100980.0,100970.0,0.011]
[1737952144687,0.86187762,100980.0,100960.0,0.17988839]
[1737952144990,0.87955581,100970.0,100960.0,0.17840293]
[1737952145795,0.87955581,100970.0,100960.0,0.18340293]
[1737952146490,0.87955581,100970.0,100960.0,0.00014898]
[1737952146684,0.87955581,100970.0,100960.0,0.00214898]
[1737952146888,0.87955581,100970.0,100960.0,0.00514898]
[1737952149795,0.89047411,100970.0,100960.0,0.00514898]
[1737952153103,0.7963853,100970.0,100960.0,0.00514898]
[1737952153397,0.89047411,100970.0,100960.0,0.00514898]
[1737952154398,0.198212,100950.0,100930.0,0.91527774]
[1737952154704,0.559026,100940.0,100930.0,0.91527774]
[1737952155798,0.559026,100940.0,100930.0,0.92027774]
[1737952156509,0.001,100940.0,100930.0,1.05296782]
[1737952156803,0.001,100940.0,100930.0,1.06523128]
[1737952157102,0.00014898,100950.0,100940.0,0.198226]
[1737952157408,0.00014898,100950.0,100940.0,0.30767003]
[1737952157604,0.00014898,100950.0,100940.0,0.29231481]
[1737952157799,0.00014898,100950.0,100940.0,0.66847019]
[1737952158294,0.00014898,100950.0,100940.0,0.30767019]
[1737952158499,0.00014898,100950.0,100940.0,0.31167019]
[1737952158998,0.00014898,100950.0,100940.0,0.47456876]
[1737952159399,0.00014898,100950.0,100940.0,0.4868341]
[1737952159599,0.00114898,100950.0,100940.0,0.48356876]
[1737952159993,0.19935498,100950.0,100940.0,0.49891112]
[1737952160904,0.00114898,100950.0,100940.0,0.85971112]
[1737952161107,0.00114898,100950.0,100940.0,0.87197827]
[1737952161809,0.00114898,100950.0,100940.0,2.37197827]
[1737952162015,0.00114898,100950.0,100940.0,2.35663591]
[1737952162303,0.198181,100970.0,100940.0,2.55249872]
[1737952162508,0.198181,100970.0,100960.0,0.29227581]
[1737952162909,0.198181,100970.0,100960.0,0.41587581]
[1737952163507,0.55910098,100980.0,100970.0,0.198167]
[1737952163809,0.36094898,100980.0,100970.0,0.35335581]
[1737952164905,0.36094898,100980.0,100970.0,0.71515581]
[1737952164906,0.00014898,100980.0,100970.0,0.71515581]
[1737952167110,0.00014898,100980.0,100970.0,0.80924462]
[1737952167504,0.00014898,100980.0,100970.0,0.71515581]
[1737952167708,0.00014898,100980.0,100970.0,0.72590113]
[1737952167915,0.558917,101000.0,100970.0,0.62182294]
[1737952168114,0.558917,101000.0,100990.0,0.29221681]
[1737952168598,0.558917,101000.0,100990.0,0.198128]
[1737952169308,0.3668,101000.0,100990.0,0.29321681]
[1737952169518,0.3668,101000.0,100990.0,0.41911681]
[1737952169812,0.3668,101000.0,100990.0,0.47861681]
[1737952171313,0.3678,101000.0,100990.0,0.47861681]
[1737952172704,0.3678,101000.0,100990.0,0.48933244]
[1737952176710,0.3678,101000.0,100990.0,0.01171563]
[1737952176906,0.565908,101000.0,100990.0,0.01171563]
[1737952179517,0.565908,101000.0,100990.0,0.001]
[1737952179713,0.198128,100990.0,100980.0,0.00014898]
[1737952179914,0.77381681,100990.0,100980.0,0.00014898]
[1737952182018,0.77381681,100990.0,100980.0,0.01068081]
[1737952182315,0.77681681,100990.0,100980.0,0.01068081]
[1737952183319,0.682728,100990.0,100980.0,0.01068081]
[1737952184526,0.682728,100990.0,100980.0,0.10476962]
[1737952185017,0.77681681,100990.0,100980.0,1.51068081]
[1737952185417,0.77681681,100990.0,100980.0,0.01068081]
[1737952187124,0.682728,100990.0,100980.0,0.01068081]
[1737952187423,0.741428,100990.0,100980.0,0.01068081]
[1737952187721,0.80178881,100990.0,100950.0,0.21648881]
[1737952187919,0.558973,100970.0,100950.0,0.65373876]
[1737952188325,0.681073,100970.0,100950.0,0.65373876]
[1737952189118,0.68122198,100970.0,100960.0,0.198187]
[1737952189910,0.12324898,100970.0,100960.0,0.29227581]
[1737952190625,0.12224898,100970.0,100960.0,0.29527581]
[1737952191426,0.12224898,100970.0,100960.0,0.29727581]
[1737952191613,0.00014898,100970.0,100960.0,0.29727581]
[1737952193726,0.00014898,100970.0,100960.0,1.79727581]
[1737952194225,0.00014898,100970.0,100960.0,0.29727581]
[1737952195020,0.00014898,100970.0,100960.0,0.29627581]
[1737952195728,0.00014898,100970.0,100960.0,0.29327581]
[1737952196026,0.00014898,100970.0,100960.0,2.15407581]
[1737952197628,0.00014898,100970.0,100960.0,0.65407581]
[1737952199622,0.19831598,100970.0,100960.0,0.65407581]
[1737952199822,0.00014898,100970.0,100960.0,0.65407581]
[1737952203527,0.0609,100990.0,100960.0,0.63414276]
[1737952203731,0.558912,101000.0,100990.0,0.198128]
[1737952203936,0.4846,101010.0,100990.0,0.45488881]
[1737952204233,0.617891,101010.0,101000.0,0.29219681]
[1737952204537,0.617891,101010.0,101000.0,0.198108]
[1737952204729,0.198108,101000.0,100990.0,0.25977298]
[1737952204928,0.623708,101000.0,100990.0,0.25977298]
[1737952205134,0.71779681,101000.0,100990.0,0.00014898]
[1737952206032,0.632708,101000.0,100990.0,0.00114898]
[1737952206235,0.72679681,101000.0,100990.0,0.00114898]
[1737952206930,0.632708,101000.0,100990.0,0.19927698]
[1737952207125,0.0738,101000.0,100990.0,0.29336579]
[1737952207535,0.012,101000.0,100990.0,0.29336579]
[1737952208635,0.012,101000.0,100990.0,0.41566579]
[1737952208836,0.012,101000.0,100990.0,0.42607033]
[1737952209828,0.012,101000.0,100990.0,0.36727033]
[1737952210030,0.66499681,101000.0,100990.0,0.00114898]
[1737952210235,0.72929681,101000.0,100990.0,0.00114898]
[1737952210430,0.635208,101000.0,100990.0,0.19927698]
[1737952211140,0.635208,101000.0,100990.0,0.29336579]
[1737952211340,0.3728,101000.0,100990.0,0.29336579]
[1737952211537,0.012,101000.0,100990.0,0.35536579]
[1737952214040,0.3728,101000.0,100990.0,0.35536579]
[1737952214349,0.012,101000.0,100990.0,0.35536579]
[1737952214543,0.012,101000.0,100990.0,0.42046579]
[1737952216840,0.210108,101000.0,100990.0,0.35536579]
[1737952217346,0.210108,101000.0,100990.0,0.26127698]
[1737952217643,0.210108,101000.0,100990.0,0.19927698]
[1737952217847,0.272208,101000.0,100990.0,0.19927698]
[1737952218146,0.012,101000.0,100990.0,0.29336579]
[1737952218346,0.012,101000.0,100990.0,0.35526579]
[1737952221046,0.012,101000.0,100990.0,0.71606579]
[1737952221248,0.012,101000.0,100990.0,0.77756579]
[1737952221952,0.00014898,101020.0,101010.0,0.198089]
[1737952222139,0.00014898,101020.0,101010.0,0.87456662]
[1737952222341,0.19821798,101020.0,101010.0,0.41967781]
[1737952222553,0.55901798,101020.0,101000.0,0.45488881]
[1737952222745,0.55901798,101020.0,101000.0,0.29218681]
[1737952222746,0.558889,101010.0,101000.0,0.29218681]
[1737952223152,0.68712198,101020.0,101010.0,0.198089]
[1737952223449,0.69312198,101020.0,101010.0,0.29317781]
[1737952223654,0.69712198,101020.0,101010.0,0.29317781]
[1737952223854,0.33632198,101020.0,101010.0,0.29317781]
[1737952224061,0.33032198,101020.0,101010.0,0.29217781]
[1737952224250,0.69112198,101020.0,101010.0,0.29217781]
[1737952224447,0.68812198,101020.0,101010.0,0.29217781]
[1737952224652,0.13524898,101020.0,101010.0,0.29317781]
[1737952224854,0.13031421,101020.0,101010.0,0.29317781]
[1737952226145,0.007,101020.0,101010.0,0.29317781]
[1737952226349,0.007,101020.0,101010.0,0.38726662]
[1737952226549,0.007,101020.0,101010.0,0.29317781]
[1737952227054,0.007,101020.0,101010.0,0.74806662]
[1737952227954,0.00014898,101030.0,101020.0,0.198069]
[1737952228151,0.00014898,101030.0,101020.0,0.84025781]
[1737952228555,0.60488959,101040.0,101030.0,0.198049]
[1737952228758,0.60488959,101040.0,101030.0,0.29213781]
[1737952229560,0.60488959,101040.0,101030.0,0.198049]
[1737952230555,0.198049,101030.0,101020.0,0.35495081]
[1737952230758,0.624749,101030.0,101020.0,0.260862]
[1737952230960,0.198069,101020.0,101010.0,0.30253543]
[1737952231259,0.3608,101020.0,101010.0,0.30253543]
[1737952231959,0.620469,101020.0,101010.0,0.30253543]
[1737952232464,0.4224,101020.0,101010.0,0.30253543]
[1737952233755,0.4234,101020.0,101010.0,0.30253543]
[1737952234053,0.621469,101020.0,101010.0,0.01036962]
[1737952234254,0.71555781,101020.0,101010.0,0.00014898]
[1737952235165,0.621469,101020.0,101010.0,0.00014898]
[1737952235348,0.621469,101020.0,101010.0,0.65312679]
[1737952235349,0.0626,101020.0,101010.0,0.65312679]
[1737952238553,0.001,101020.0,101010.0,0.65312679]
[1737952239057,0.199069,101020.0,101010.0,0.65312679]
[1737952239265,0.65395781,101020.0,101010.0,0.00014898]
[1737952239656,0.559869,101020.0,101010.0,0.00014898]
[1737952240651,0.559869,101020.0,101010.0,0.19823798]
[1737952240961,0.001,101020.0,101010.0,0.65312679]
[1737952243270,0.199069,101020.0,101010.0,0.55903798]
[1737952243968,0.559869,101020.0,101010.0,0.19823798]
[1737952245970,0.3618,101020.0,101010.0,0.29232679]
[1737952246269,0.001,101020.0,101010.0,0.65312679]
[1737952246663,0.001,101020.0,101010.0,2.15312679]
[1737952247174,0.001,101020.0,101010.0,0.65312679]
[1737952249473,0.001,101020.0,101010.0,0.7472156]
[1737952249972,0.001,101020.0,101010.0,0.65312679]
[1737952251671,0.199069,101020.0,101010.0,0.55903798]
[1737952252375,0.199069,101020.0,101010.0,0.19823798]
[1737952253675,0.199069,101020.0,101010.0,0.47058074]
[1737952254063,0.199069,101020.0,101010.0,0.37649193]
[1737952255263,0.559869,101020.0,101010.0,0.37649193]
[1737952255868,0.199069,101020.0,101010.0,0.37649193]
[1737952256471,0.199069,101020.0,101010.0,0.19823798]
[1737952256672,0.559869,101020.0,101010.0,0.19823798]
[1737952257981,0.65395781,101020.0,101010.0,0.19823798]
[1737952258172,0.65395781,101020.0,101010.0,0.00014898]
[1737952258776,0.559869,101020.0,101010.0,0.00014898]
[1737952260677,0.65395781,101020.0,101010.0,0.00014898]
[1737952262668,0.559869,101020.0,101010.0,0.00014898]
[1737952263273,0.65395781,101020.0,101010.0,0.00014898]
[1737952265784,0.83006916,101020.0,101010.0,0.00014898]
[1737952267081,0.73598035,101020.0,101010.0,0.00014898]
[1737952267276,0.73598035,101020.0,101010.0,0.29232679]
[1737952267472,0.37518035,101020.0,101010.0,0.29232679]
[1737952267667,0.37518035,101020.0,101010.0,0.19823798]
[1737952268172,0.73598035,101020.0,101010.0,0.19823798]
[1737952270486,0.37518035,101020.0,101010.0,0.19823798]
[1737952270670,0.37518035,101020.0,101010.0,0.29232679]
[1737952271278,0.73598035,101020.0,101010.0,0.19823798]
[1737952271679,0.73598035,101020.0,101010.0,0.00014898]
[1737952272480,0.73598035,101020.0,101010.0,0.19823798]
[1737952273980,0.559869,101020.0,101010.0,0.19823798]
[1737952274380,0.559869,101020.0,101010.0,0.00014898]
[1737952274684,0.65395781,101020.0,101010.0,0.00014898]
[1737952275786,0.6538866,101020.0,101010.0,0.00014898]
[1737952277790,0.198108,101000.0,100990.0,0.17825395]
[1737952277983,0.65299681,101000.0,100990.0,0.17825395]
[1737952278176,0.74151681,101000.0,100990.0,0.17825395]
[1737952278484,1.10231681,101000.0,100990.0,0.17825395]
[1737952278978,1.10231681,101000.0,100990.0,0.17925395]
[1737952279176,1.10231681,101000.0,100990.0,0.18125395]
[1737952279786,1.26671681,101000.0,100990.0,0.18125395]
[1737952282079,1.26671681,101000.0,100990.0,0.003]
[1737952286301,1.27679303,101000.0,100990.0,0.003]
[1737952288201,1.27551975,101000.0,100990.0,0.003]
[1737952290698,0.198128,100990.0,100980.0,0.00014898]
[1737952290900,0.83541681,100990.0,100980.0,0.00014898]
[1737952291898,0.83541681,100990.0,100980.0,0.00214898]
[1737952292090,0.679228,100990.0,100980.0,0.00214898]
[1737952292294,0.3608,100990.0,100980.0,0.29838479]
[1737952292606,0.51108898,101010.0,101000.0,0.198108]
[1737952292900,0.00014898,101010.0,101000.0,0.29219681]
[1737952293702,0.00014898,101010.0,101000.0,0.65299681]
[1737952293893,0.00114898,101010.0,101000.0,0.65299681]
[1737952294093,0.85900835,101040.0,101000.0,0.59849962]
[1737952294300,0.49820835,101040.0,101030.0,0.29213781]
[1737952294507,0.49820835,101040.0,101030.0,0.65293781]
[1737952294803,0.30140835,101040.0,101030.0,0.86882662]
[1737952295002,0.26386669,101060.0,101050.0,0.19801]
[1737952295200,0.26386669,101060.0,101050.0,0.29209881]
[1737952295402,0.46185769,101060.0,101050.0,0.19801]
[1737952295599,0.9167465,101060.0,101040.0,0.55896898]
[1737952296304,0.89967684,101060.0,101050.0,0.001]
[1737952296495,0.95897684,101060.0,101050.0,0.001]
[1737952297001,0.75998584,101060.0,101040.0,0.00014898]
[1737952297203,0.71549881,101050.0,101040.0,0.00114898]
[1737952297505,0.77549881,101050.0,101040.0,0.00114898]
[1737952298497,0.77849881,101050.0,101040.0,0.00114898]
[1737952298697,0.68441,101050.0,101040.0,0.00114898]
[1737952299105,0.68441,101050.0,101040.0,0.00014898]
[1737952299298,0.4864,101050.0,101040.0,0.19817898]
[1737952299607,0.003,101050.0,101040.0,0.3863566]
[1737952299794,0.003,101050.0,101040.0,0.29326779]
[1737952299795,0.004,101050.0,101040.0,0.29326779]
[1737952300000,0.004,101050.0,101040.0,0.65406779]
[1737952300202,0.0593,101060.0,101050.0,0.19801]
[1737952300203,0.05777715,101060.0,101050.0,0.19801]
[1737952300501,0.05777715,101060.0,101050.0,0.29209881]
[1737952300704,0.623776,101070.0,101050.0,0.29209881]
[1737952300907,0.3608,101060.0,101050.0,0.19801]
[1737952301698,0.3608,101060.0,101040.0,0.29326179]
[1737952301699,0.558791,101060.0,101040.0,0.29326179]
[1737952301900,0.3608,101050.0,101040.0,0.19917298]
[1737952302201,0.3608,101050.0,101040.0,0.19817298]
[1737952302601,0.3608,101050.0,101040.0,0.29226179]
[1737952302808,0.55881,101050.0,101040.0,0.00014898]
[1737952303011,0.56181,101050.0,101040.0,0.00114898]
[1737952303196,0.62291,101050.0,101040.0,0.00114898]
[1737952303400,0.62291,101050.0,101040.0,0.00014898]
[1737952303604,0.62291,101050.0,101040.0,0.00114898]
[1737952303797,0.71699881,101050.0,101040.0,0.00114898]
[1737952304110,0.77619881,101050.0,101040.0,0.00114898]
[1737952304314,0.86479881,101050.0,101040.0,0.00114898]
[1737952304503,1.02919881,101050.0,101040.0,0.00114898]
[1737952313919,1.02819881,101050.0,101040.0,0.00114898]
[1737952314310,1.03832965,101050.0,101040.0,0.00114898]
[1737952314513,0.198049,101030.0,101020.0,0.00148457]
[1737952314816,0.65293781,101030.0,101010.0,0.62925519]
[1737952315713,0.65408679,101030.0,101010.0,0.62940417]
[1737952316017,0.45603779,101030.0,101010.0,0.62940417]
[1737952316217,0.71545781,101020.0,101010.0,0.01021817]
[1737952316512,0.78015781,101020.0,101010.0,0.01021817]
[1737952316816,0.686069,101020.0,101010.0,0.01021817]
[1737952317409,0.749169,101020.0,101010.0,0.01021817]
[1737952320819,0.1903,101020.0,101010.0,0.10430698]
[1737952321020,0.0625,101020.0,101010.0,0.66319598]
[1737952321323,0.0625,101020.0,101010.0,0.36789598]
[1737952321913,0.4233,101020.0,101010.0,0.36789598]
[1737952322117,0.71545781,101020.0,101010.0,0.00014898]
[1737952322318,0.198128,100990.0,100980.0,0.08229311]
[1737952322622,0.65301681,100990.0,100980.0,0.02109311]
[1737952322819,0.558928,100990.0,100980.0,0.02109311]
[1737952323021,0.558928,100990.0,100980.0,0.21924011]
[1737952323222,0.558928,100990.0,100980.0,0.198147]
[1737952323423,0.558928,100990.0,100980.0,0.005]
[1737952323721,0.65301681,100990.0,100980.0,0.007]
[1737952324111,0.558928,100990.0,100980.0,0.007]
[1737952324318,0.558928,100990.0,100980.0,0.205147]
[1737952324630,0.65301681,100990.0,100980.0,0.007]
[1737952325110,0.558928,100990.0,100980.0,0.007]
[1737952325312,0.198128,100990.0,100980.0,0.205147]
[1737952325528,0.198128,100990.0,100980.0,0.007]
[1737952326319,0.558928,100990.0,100980.0,0.007]
[1737952333033,0.75026198,101000.0,100980.0,0.29922081]
[1737952333722,0.65301681,100990.0,100980.0,0.007]
[1737952334123,0.558928,100990.0,100980.0,0.005]
[1737952334327,0.558928,100990.0,100980.0,0.007]
[1737952336225,0.558928,100990.0,100980.0,0.005]
[1737952336422,0.558928,100990.0,100980.0,0.007]
[1737952337927,0.65301681,100990.0,100980.0,0.007]
[1737952339333,0.65301681,100990.0,100970.0,0.00014898]
[1737952339334,0.198147,100980.0,100970.0,0.00014898]
[1737952339631,0.94972462,100980.0,100970.0,0.00014898]
[1737952340231,0.85563581,100980.0,100970.0,0.00014898]
[1737952340546,0.85563581,100980.0,100970.0,0.00514898]
[1737952340827,0.85563581,100980.0,100970.0,0.00914898]
[1737952342036,0.75157762,100980.0,100950.0,0.00148552]
[1737952342227,0.65307581,100960.0,100950.0,0.00148552]
[1737952342630,0.65307581,100960.0,100930.0,0.88787276]
[1737952342830,0.4183,100950.0,100930.0,0.88787276]
[1737952343131,0.616507,100950.0,100930.0,0.88787276]
[1737952343434,0.4213,100940.0,100930.0,0.37663293]
[1737952343632,0.71361481,100940.0,100930.0,0.17840293]
[1737952344338,0.71361481,100940.0,100930.0,0.18740293]
[1737952344535,0.71361481,100940.0,100930.0,0.19140293]
[1737952344926,0.4213,100940.0,100930.0,0.38964893]
[1737952345231,0.4213,100940.0,100930.0,0.19140293]
[1737952345732,0.4213,100940.0,100930.0,0.38964893]
[1737952346035,0.4213,100940.0,100930.0,0.37664893]
[1737952346229,0.4213,100940.0,100930.0,0.19839498]
[1737952346425,0.4213,100940.0,100930.0,0.29248379]
[1737952346831,0.4213,100940.0,100930.0,0.19839498]
[1737952347838,0.4213,100940.0,100930.0,0.25699498]
[1737952350641,0.619526,100940.0,100930.0,0.25699498]
[1737952350838,0.619526,100940.0,100930.0,0.05874898]
[1737952351141,0.71361481,100940.0,100930.0,0.00014898]
[1737952357637,0.62713383,100940.0,100910.0,0.17825395]
[1737952357844,0.45488881,100920.0,100910.0,0.17825395]
[1737952358044,0.559065,100920.0,100910.0,0.17825395]
[1737952358341,1.01395381,100920.0,100910.0,0.17825395]
[1737952359737,1.01395381,100920.0,100910.0,0.18525395]
[1737952360137,1.01395381,100920.0,100910.0,0.18825395]
[1737952360338,0.47754898,100930.0,100910.0,0.28234276]
[1737952360540,0.67579798,100930.0,100910.0,0.54031776]
[1737952360840,0.67579798,100930.0,100910.0,0.59201776]
[1737952361047,0.001,100920.0,100910.0,0.60201776]
[1737952361238,0.3618,100920.0,100910.0,0.38652895]
[1737952361439,0.3618,100920.0,100910.0,0.208275]
[1737952362448,0.3608,100920.0,100910.0,0.29536381]
[1737952362649,0.3608,100920.0,100910.0,0.35816381]
[1737952362844,0.77088679,100930.0,100910.0,0.35816381]
[1737952363048,0.67579798,100930.0,100910.0,0.35116381]
[1737952363240,0.001,100920.0,100910.0,0.35816381]
[1737952363656,0.001,100920.0,100910.0,0.71896381]
[1737952363948,0.001,100920.0,100910.0,0.35816381]
[1737952364148,0.67579798,100930.0,100910.0,0.15288881]
[1737952364443,0.67679798,100930.0,100920.0,0.198265]
[1737952365340,0.36194898,100930.0,100920.0,0.29235381]
[1737952365544,0.36194898,100930.0,100920.0,0.254765]
[1737952365752,0.56019498,100930.0,100920.0,0.254765]
[1737952365953,0.61889498,100930.0,100920.0,0.254765]
[1737952366447,0.61789498,100930.0,100920.0,0.254765]
[1737952366849,0.71198379,100930.0,100920.0,0.254765]
[1737952367050,0.71198379,100930.0,100920.0,0.258765]
[1737952367353,0.61789498,100930.0,100920.0,0.258765]
[1737952367545,0.61789498,100930.0,100920.0,0.260765]
[1737952370557,0.61789498,100930.0,100920.0,0.27089775]
[1737952371149,0.71198379,100930.0,100920.0,0.21439775]
[1737952371346,0.77108379,100930.0,100920.0,0.006]
[1737952371546,0.198265,100920.0,100910.0,0.17825395]
[1737952371747,0.65315381,100920.0,100910.0,0.17825395]
[1737952372250,0.74724262,100920.0,100910.0,0.17825395]
[1737952372455,0.198285,100910.0,100900.0,0.3372589]
[1737952372652,0.71227381,100910.0,100900.0,0.39555826]
[1737952372851,0.79991381,100910.0,100900.0,0.39555826]
[1737952373255,0.79991381,100910.0,100900.0,0.21115826]
[1737952374049,0.79991381,100910.0,100900.0,0.21215826]
[1737952374756,0.79991381,100910.0,100900.0,0.21315826]
[1737952375650,0.85561381,100910.0,100900.0,0.21315826]
[1737952376055,0.85561381,100910.0,100900.0,0.002]
[1737952376462,0.91351381,100910.0,100900.0,0.002]
[1737952378264,0.29239381,100900.0,100890.0,0.00014898]
[1737952378558,0.65319381,100900.0,100890.0,0.00014898]
[1737952378862,0.559105,100900.0,100890.0,0.00014898]
[1737952379658,0.65319381,100900.0,100890.0,0.00355127]
[1737952379856,0.65319381,100900.0,100890.0,0.00555127]
[1737952380965,0.73193798,100910.0,100890.0,0.29796408]
[1737952381158,0.73193798,100910.0,100890.0,0.35456408]
[1737952381353,0.82602679,100910.0,100890.0,0.26047527]
[1737952382354,0.70902679,100910.0,100890.0,0.26047527]
[1737952382554,0.70902679,100910.0,100900.0,0.058]
[1737952382749,0.51073779,100910.0,100890.0,0.26047227]
[1737952382960,0.65319381,100900.0,100890.0,0.26047227]
[1737952383664,0.76782879,100910.0,100890.0,0.26047227]
[1737952383964,0.70902879,100910.0,100890.0,0.25547227]
[1737952384263,0.70902879,100910.0,100890.0,0.25847227]
[1737952384765,0.70902879,100910.0,100890.0,0.26047227]
[1737952384959,0.55923998,100910.0,100890.0,0.15624008]
[1737952385163,0.36094898,100910.0,100900.0,0.40909381]
[1737952385568,0.00014898,100910.0,100900.0,0.40909381]
[1737952385763,0.00014898,100910.0,100900.0,0.76989381]
[1737952389467,0.198249,100930.0,100920.0,0.198265]
[1737952390165,0.198249,100930.0,100920.0,0.252865]
[1737952390369,0.559049,100930.0,100920.0,0.252865]
[1737952390568,0.66113781,100930.0,100920.0,0.0556]
[1737952391563,0.71833781,100930.0,100920.0,0.0556]
[1737952391761,0.71833781,100930.0,100920.0,0.001]
[1737952391957,0.77643781,100930.0,100920.0,0.001]
[1737952394969,0.624249,100930.0,100920.0,0.199265]
[1737952395574,0.624249,100930.0,100920.0,0.256365]
[1737952396672,0.624249,100930.0,100920.0,0.001]
[1737952396973,0.678249,100930.0,100920.0,0.001]
[1737952397175,0.77233781,100930.0,100920.0,0.001]
[1737952397878,0.78109313,100930.0,100910.0,0.00014898]
[1737952398076,0.198305,100900.0,100890.0,0.00040229]
[1737952398377,1.01399381,100900.0,100890.0,0.00040229]
[1737952398679,1.12299381,100900.0,100890.0,0.00040229]
[1737952399271,1.12299381,100900.0,100890.0,0.00340229]
[1737952399670,1.28739381,100900.0,100890.0,0.00340229]
[1737952400871,1.28739381,100900.0,100890.0,0.00540229]
[1737952401074,1.20364976,100900.0,100880.0,0.00014898]
[1737952401366,0.71201281,100890.0,100880.0,0.00014898]
[1737952402782,0.71201281,100890.0,100880.0,0.00314898]
[1737952403282,0.71201281,100890.0,100880.0,0.00414898]
[1737952406881,0.80013281,100890.0,100880.0,0.00414898]
[1737952407778,0.89422162,100890.0,100880.0,0.00414898]
[1737952407980,0.198364,100870.0,100860.0,0.0583]
[1737952408178,0.65325281,100870.0,100860.0,0.0583]
[1737952408384,0.50908881,100880.0,100860.0,0.0583]
[1737952408574,0.70743681,100880.0,100860.0,0.256673]
[1737952409079,0.70758579,100880.0,100860.0,0.25677232]
[1737952409473,0.70858579,100880.0,100860.0,0.26177232]
[1737952409881,0.70858579,100880.0,100860.0,0.26477232]
[1737952410681,0.70858579,100880.0,100860.0,0.26177232]
[1737952410878,0.70858579,100880.0,100860.0,0.26477232]
[1737952411083,0.29245281,100870.0,100860.0,0.06639932]
[1737952411483,0.65325281,100870.0,100860.0,0.06639932]
[1737952411688,0.65325281,100870.0,100860.0,0.00809932]
[1737952412575,0.65425281,100870.0,100860.0,0.00609932]
[1737952413180,0.65325281,100870.0,100860.0,0.00509932]
[1737952414385,0.65325281,100870.0,100860.0,0.00309932]
[1737952414988,0.198399,100860.0,100840.0,0.31180146]
[1737952415290,0.198423,100840.0,100830.0,0.0572]
[1737952415489,0.65331181,100840.0,100820.0,0.54685659]
[1737952415678,0.3608,100830.0,100820.0,0.55669023]
[1737952416185,0.559242,100830.0,100820.0,0.55669023]
[1737952416989,0.65433081,100830.0,100820.0,0.56069023]
[1737952417987,0.65433081,100830.0,100820.0,0.32738864]
[1737952418186,0.560242,100830.0,100820.0,0.32738864]
[1737952419390,0.65433081,100830.0,100820.0,0.32738864]
[1737952419795,0.560242,100830.0,100820.0,0.32738864]
[1737952421185,0.001,100830.0,100820.0,0.32738864]
[1737952421689,0.560242,100830.0,100820.0,1.82738864]
[1737952421885,0.199442,100830.0,100820.0,1.82738864]
[1737952423305,0.199442,100830.0,100820.0,0.32738864]
[1737952423506,0.560242,100830.0,100820.0,0.32738864]
[1737952423803,0.560242,100830.0,100820.0,1.82738864]
[1737952424200,0.560242,100830.0,100820.0,0.32738864]
[1737952424402,0.65433081,100830.0,100820.0,0.12893364]
[1737952424607,0.65433081,100830.0,100820.0,1.62893364]
[1737952425006,0.65433081,100830.0,100820.0,0.12893364]
[1737952425598,0.65433081,100830.0,100820.0,0.1191]
[1737952426206,0.65433081,100830.0,100820.0,0.1151]
[1737952426507,0.65333081,100830.0,100820.0,0.1141]
[1737952426805,0.65433081,100830.0,100820.0,0.0624]
[1737952427309,0.66233081,100830.0,100820.0,0.0564]
[1737952428002,0.198462,100820.0,100810.0,0.313274]
[1737952428207,0.559262,100820.0,100810.0,0.313274]
[1737952428408,0.29255081,100820.0,100810.0,0.313274]
[1737952429310,0.29655081,100820.0,100810.0,0.313274]
[1737952429509,0.203462,100820.0,100810.0,0.313274]
[1737952429717,0.203462,100820.0,100810.0,0.32343687]
[1737952430402,0.005,100820.0,100810.0,0.77832568]
[1737952437923,0.00014898,100840.0,100830.0,0.198442]
[1737952438103,0.00014898,100840.0,100830.0,1.84793081]
[1737952438510,0.00014898,100840.0,100830.0,2.20873081]
[1737952439405,0.00414898,100840.0,100830.0,2.20873081]
[1737952439608,0.00414898,100840.0,100830.0,0.80281962]
[1737952440211,0.34341482,100860.0,100830.0,2.10437762]
[1737952440419,0.253569,100870.0,100860.0,0.198383]
[1737952440612,1.07708882,100880.0,100860.0,0.09408881]
[1737952440811,1.18031,100880.0,100870.0,0.198363]
[1737952441014,0.55915,100880.0,100870.0,0.198363]
[1737952441217,0.198363,100870.0,100860.0,0.312976]
[1737952441412,0.65325181,100870.0,100860.0,0.25442498]
[1737952442214,0.30145181,100870.0,100860.0,0.25542498]
[1737952442415,0.66225181,100870.0,100860.0,0.25542498]
[1737952442618,0.198363,100870.0,100860.0,0.25442498]
[1737952442826,0.201363,100870.0,100860.0,0.25442498]
[1737952443620,0.004,100870.0,100860.0,0.70931379]
[1737952443822,0.004,100870.0,100860.0,0.34851379]
[1737952444013,0.004,100870.0,100860.0,0.70931379]
[1737952445122,0.004,100870.0,100860.0,0.8034026]
[1737952445622,0.004,100870.0,100860.0,2.3034026]
[1737952446019,0.00014898,100890.0,100860.0,2.1050266]
[1737952446326,0.00014898,100890.0,100880.0,1.01403281]
[1737952447218,0.00114898,100890.0,100880.0,1.01403281]
[1737952448425,0.00414898,100890.0,100880.0,1.01403281]
[1737952448815,0.00314898,100890.0,100880.0,1.01403281]
[1737952449015,0.01214898,100890.0,100880.0,1.01503281]
[1737952450017,0.19827,100920.0,100910.0,0.198282]
[1737952450221,0.19829,100910.0,100900.0,0.198293]